fUST/lending_fUST_20250821
["ID","MTS","AMOUNT","RATE_DAILY","PERIOD"]
[380461431,1755781857523,-480.0,0.00022465,3]
[380461432,1755781857533,-480.0,0.00022465,3]
[380461433,1755781857542,-480.0,0.00022465,3]
[380461434,1755781857552,-543.10188907,0.00022465,3]
[380461435,1755781857562,-480.0,0.00022465,3]
[380461436,1755781857572,-480.0,0.00022465,3]
[380461437,1755781857581,-480.0,0.00022465,3]
[380461438,1755781857590,-480.0,0.00022465,3]
[380461439,1755781857600,-480.0,0.00022465,3]
[380461440,1755781857609,-480.0,0.00022465,3]
[380461441,1755781857618,-480.0,0.00022465,3]
[380461442,1755781857627,-480.0,0.00022465,3]
[380461443,1755781857637,-480.0,0.00022465,3]
[380461444,1755781857646,-480.0,0.00022465,3]
[380461445,1755781857655,-480.0,0.00022465,3]
[380461446,1755781857664,-303.40616805,0.00022465,3]
[380461447,1755781857674,-480.0,0.00022465,3]
[380461448,1755781857683,-480.0,0.00022465,3]
[380461449,1755781857693,-480.0,0.00022465,3]
[380461450,1755781857703,-569.11,0.00022465,3]
[380461451,1755781857712,-480.0,0.00022465,3]
[380461452,1755781857733,-480.0,0.00022465,3]
[380461453,1755781857743,-480.0,0.00022465,3]
[380461454,1755781857754,-480.0,0.00022465,3]
[380461455,1755781857764,-480.0,0.00022465,3]
[380461456,1755781857773,-480.0,0.00022465,3]
[380461457,1755781857782,-480.0,0.00022465,3]
[380461458,1755781857794,-480.0,0.00022465,3]
[380461459,1755781857805,-480.0,0.00022465,3]
[380461460,1755781857819,-480.0,0.00022465,3]
[380461461,1755781857830,-577.14388595,0.00022465,3]
[380461462,1755781857840,-480.0,0.00022465,3]
[380461463,1755781857849,-480.0,0.00022465,3]
[380461464,1755781857859,-480.0,0.00022465,3]
[380461465,1755781857869,-480.0,0.00022465,3]
[380461466,1755781857878,-480.0,0.00022465,3]
[380461467,1755781857888,-707.76,0.00022465,3]
[380461468,1755781857898,-480.0,0.00022465,3]
[380461469,1755781857908,-430.85665073,0.00022465,3]
[380461470,1755781857924,-480.0,0.00022465,3]
[380461471,1755781857937,-480.0,0.00022465,3]
[380461472,1755781857947,-480.0,0.00022465,3]
[380461473,1755781857956,-1597.29,0.00022465,3]
[380461474,1755781857965,-480.0,0.00022465,3]
[380461475,1755781857975,-480.0,0.00022465,3]
[380461476,1755781857984,-480.0,0.00022465,3]
[380461477,1755781857993,-762.9,0.00022465,3]
[380461478,1755781858002,-500.0,0.00022465,3]
[380461479,1755781858011,-480.0,0.00022465,3]
[380461480,1755781858021,-480.0,0.00022465,3]
[380461481,1755781858030,-480.0,0.00022465,3]
[380461482,1755781858039,-519.91,0.00022465,3]
[380461483,1755781858049,-315.08111282,0.00022465,3]
[380461484,1755781858059,-480.0,0.00022465,3]
[380461485,1755781858068,-480.0,0.00022465,3]
[380461486,1755781858078,-480.0,0.00022465,3]
[380461487,1755781858088,-412.9155507,0.00022465,3]
[380461488,1755781858097,-561.46,0.00022465,3]
[380461489,1755781858107,-480.0,0.00022465,3]
[380461490,1755781858117,-480.0,0.00022465,3]
[380461491,1755781858127,-494.49,0.00022465,3]
[380461492,1755781858136,-969.96,0.00022465,3]
[380461493,1755781858145,-2319.36,0.00022465,3]
[380461494,1755781858154,-480.0,0.00022465,3]
[380461495,1755781858164,-480.0,0.00022465,3]
[380461496,1755781858174,-1006.99,0.00022465,3]
[380461497,1755781858183,-480.0,0.00022465,3]
[380461498,1755781858192,-980.06,0.00022465,3]
[380461499,1755781858202,-480.0,0.00022465,3]
[380461500,1755781858212,-480.0,0.00022465,3]
[380461501,1755781858222,-869.93,0.00022465,3]
[380461502,1755781858231,-624.76,0.00022465,3]
[380461503,1755781858241,-657.43,0.00022465,3]
[380461504,1755781858250,-480.0,0.00022465,3]
[380461505,1755781858260,-480.0,0.00022465,3]
[380461506,1755781858269,-480.0,0.00022465,3]
[380461507,1755781858279,-877.95,0.00022465,3]
[380461508,1755781858289,-609.84294592,0.00022465,3]
[380461509,1755781858299,-494.7,0.00022465,3]
[380461510,1755781858308,-525.33,0.00022465,3]
[380461511,1755781858318,-498.76,0.00022465,3]
[380461512,1755781858327,-252.04716043,0.00022465,3]
[380461513,1755781858336,-480.0,0.00022465,3]
[380461514,1755781858346,-1288.41,0.00022465,3]
[380461515,1755781858355,-480.0,0.00022465,3]
[380461516,1755781858365,-702.24,0.00022465,3]
[380461517,1755781858374,-898.87,0.00022465,3]
[380461518,1755781858384,-480.0,0.00022465,3]
[380461519,1755781858393,-480.0,0.00022465,3]
[380461520,1755781858403,-480.0,0.00022465,3]
[380461521,1755781858412,-492.04,0.00022465,3]
[380461522,1755781858421,-480.0,0.00022465,3]
[380461523,1755781858430,-1156.55,0.00022465,3]
[380461524,1755781858440,-504.31,0.00022465,3]
[380461525,1755781858449,-540.84,0.00022465,3]
[380461526,1755781858459,-480.0,0.00022465,3]
[380461527,1755781858469,-1093.96,0.00022465,3]
[380461528,1755781858478,-936.19,0.00022465,3]
[380461529,1755781858487,-641.9,0.00022465,3]
[380461530,1755781858496,-151.80443665,0.00022465,3]
[380461532,1755781876599,1581.61750567,0.00019502,2]
[380461533,1755781881725,2265.68853472,0.000192,2]
[380461534,1755781881747,734.31146528,0.000192,2]
[380461535,1755781914557,165.0,7.5e-07,2]
[380461537,1755781921775,387.0,0.00027427,60]
[380461538,1755781922107,387.0,0.00027427,60]
[380461539,1755781922459,387.0,0.00027427,60]
[380461540,1755781922813,387.0,0.00027427,60]
[380461541,1755781923179,387.0,0.00027427,60]
[380461542,1755781923627,387.0,0.00027427,60]
[380461543,1755781924018,392.0,0.00027427,60]
[380461544,1755781941720,628.37978551,0.000192,2]
[380461547,1755782021851,414.110666,0.00013699,2]
[380461549,1755782167585,8058.19808321,0.00019345,2]
[380461550,1755782167608,1941.80191679,0.00019345,2]
[380461551,1755782204974,157.0,0.000273,120]
[380461552,1755782217967,157.0,0.000273,120]
[380461553,1755782255456,158.0,0.000195,3]
[380461554,1755782257351,158.0,0.000195,2]
[380461555,1755782258353,158.0,0.000195,2]
[380461556,1755782265248,158.0,0.000195,2]
[380461557,1755782267866,158.0,0.000195,2]
[380461558,1755782270318,158.0,0.000195,3]
[380461559,1755782282632,158.0,0.000195,2]
[380461560,1755782305424,158.0,0.000195,3]
[380461561,1755782346864,839.8925303,0.00019433,2]
[380461562,1755782347170,158.0,0.000195,4]
[380461564,1755782406102,1000.0,0.00019284,2]
[380461565,1755782429395,359.784813,0.00019359,2]
[380461569,1755782734338,666.0,0.00019359,2]
[380461571,1755782744105,-160.0,0.00019614,2]
[380461572,1755782744125,-389.17032564,0.00019614,2]
[380461573,1755782744146,-28.15494234,0.000198,2]
[380461576,1755782805267,400.0,0.00027418,60]
[380461578,1755782848139,1112.77660116,0.00019514,2]
[380461579,1755782849972,200.0,0.00027418,60]
[380461580,1755782871068,2657.74413875,0.00018,2]
[380461581,1755782871096,10000.0,0.00018,2]
[380461582,1755782871124,10000.0,0.00018,2]
[380461583,1755782871151,10000.0,0.00018,2]
[380461584,1755782871179,66.92111501,0.00018,2]
[380461586,1755782872745,257.21,0.00027418,60]
[380461590,1755782923195,6745.51953346,0.0001,2]
[380461591,1755782924979,1721.1179374,0.0001,2]
[380461592,1755782925107,1466.44141413,0.00019317,2]
[380461593,1755782925134,10000.0,0.00019317,2]
[380461594,1755782925158,7596.61578097,0.00019317,2]
[380461595,1755782966296,405.734507,0.00013699,2]
[380461597,1755783002515,909.2102512,0.00027432,60]
[380461599,1755783025172,1997.64971203,0.00019599,2]
[380461600,1755783025196,3002.35028797,0.00019599,2]
[380461601,1755783028027,367.21234817,0.000189,2]
[380461614,1755783032757,-1181.29526253,0.000197,2]
[380461616,1755783032767,-150.74373565,0.000198,2]
[380461618,1755783032776,-329.51658046,0.000198,2]
[380461621,1755783032785,-172.135094,0.00019863,2]
[380461625,1755783032796,-162.63870684,0.000199,2]
[380461626,1755783032805,-2083.58941593,0.000199,2]
[380461627,1755783032815,-234.74398407,0.00019962,2]
[380461628,1755783032826,-94.77259637,0.00019962,2]
[380461629,1755783032835,-300.0,0.00019999,2]
[380461631,1755783032846,-300.0,0.00019999,2]
[380461633,1755783032855,-1023.0,0.00019999,2]
[380461635,1755783032865,-523.34,0.0002,2]
[380461637,1755783032875,-697.84376097,0.0002,2]
[380461639,1755783032883,-4870.11760854,0.0002,2]
[380461649,1755783033150,-9246.04230355,0.0002,2]
[380461650,1755783033160,-329.51658044,0.00020123,2]
[380461651,1755783033170,-405.734507,0.00020187,2]
[380461652,1755783033179,-329.51658044,0.00020285,2]
[380461653,1755783033188,-1203.74971996,0.00020336,2]
[380461654,1755783033198,-1269.9982436,0.00020336,2]
[380461655,1755783033207,-329.51658044,0.00020447,2]
[380461656,1755783033217,-523.34,0.00020547,2]
[380461657,1755783033226,-1947.66808801,0.00020574,2]
[380461658,1755783033246,-29436.60000231,0.00020574,2]
[380461659,1755783033259,-943.87158105,0.00020574,2]
[380461660,1755783033270,-1200.0,0.00020574,2]
[380461661,1755783033492,-151.68175611,0.0002079,2]
[380461662,1755783033503,-1934.72602318,0.00020835,2]
[380461670,1755783038689,-228.68651726,0.000197,2]
[380461671,1755783038698,-148.86339267,0.00020835,2]
[380461672,1755783038707,-151.0,0.00020881,2]
[380461673,1755783038717,-2030.296672,0.00020881,2]
[380461674,1755783038726,-1579.19219698,0.00020936,2]
[380461675,1755783038735,-827.17865569,0.0002099,2]
[380461676,1755783038744,-224.9,0.0002099,10]
[380461677,1755783038753,-500.0,0.00020999,2]
[380461678,1755783038762,-500.0,0.00020999,2]
[380461679,1755783038771,-500.0,0.00020999,2]
[380461680,1755783038780,-500.0,0.00020999,2]
[380461681,1755783038789,-500.0,0.00020999,2]
[380461682,1755783038798,-328.68128409,0.00020999,2]
[380461683,1755783038807,-637.4519666,0.00020999,2]
[380461684,1755783038816,-500.0,0.00020999,2]
[380461685,1755783038825,-500.0,0.00020999,2]
[380461686,1755783038834,-304.68970315,0.00020999,2]
[380461687,1755783038843,-500.0,0.00020999,2]
[380461688,1755783038854,-300.70543696,0.00021,2]
[380461689,1755783038864,-1858.19611871,0.00021,2]
[380461690,1755783038875,-12015.0,0.00021,2]
[380461691,1755783038886,-3671.21936897,0.00021,2]
[380461692,1755783038897,-66758.5550024,0.00021,2]
[380461693,1755783038908,-5572.39547479,0.00021,2]
[380461694,1755783038931,-19393.42546814,0.00021,2]
[380461695,1755783038940,-342.0,0.00021038,2]
[380461696,1755783038949,-523.34,0.00021095,2]
[380461697,1755783038958,-844.19128999,0.00021122,2]
[380461698,1755783038967,-215.86710461,0.00021122,2]
[380461699,1755783038976,-232.28399145,0.00021122,2]
[380461700,1755783038985,-216.95272161,0.00021122,2]
[380461701,1755783038994,-528.88070896,0.00021126,2]
[380461702,1755783039003,-376.00439007,0.00021126,2]
[380461703,1755783039012,-160.0,0.00021126,2]
[380461704,1755783039021,-160.0,0.00021126,2]
[380461705,1755783039030,-160.0,0.00021126,2]
[380461706,1755783039039,-160.0,0.00021126,2]
[380461707,1755783039048,-160.0,0.00021126,2]
[380461708,1755783039057,-160.0,0.00021126,2]
[380461709,1755783039066,-342.0,0.00021155,2]
[380461710,1755783039075,-342.0,0.00021195,2]
[380461711,1755783039084,-2391.38400363,0.000212,30]
[380461712,1755783039093,-500.0,0.000212,30]
[380461713,1755783039104,-168.0,0.00021209,2]
[380461714,1755783039113,-168.0,0.00021262,2]
[380461715,1755783039122,-342.0,0.00021347,2]
[380461716,1755783039130,-342.0,0.00021416,2]
[380461717,1755783039139,-342.0,0.00021448,2]
[380461718,1755783039148,-342.0,0.00021472,2]
[380461719,1755783039157,-168.0,0.00021602,2]
[380461720,1755783039166,-523.34,0.00021643,2]
[380461721,1755783039175,-153.0,0.00021644,2]
[380461722,1755783039184,-153.0,0.00021644,2]
[380461723,1755783039193,-153.0,0.00021644,2]
[380461724,1755783039202,-153.0,0.00021644,2]
[380461725,1755783039211,-351.0,0.00021678,2]
[380461726,1755783039220,-342.0,0.00021694,2]
[380461727,1755783039229,-174.5523806,0.00021717,2]
[380461728,1755783039238,-4406.74884032,0.00021717,2]
[380461729,1755783039247,-250.0,0.00021742,2]
[380461730,1755783039257,-2083.58941585,0.00021771,2]
[380461731,1755783039270,-974.91529074,0.00021771,2]
[380461732,1755783039279,-420.0,0.00021777,2]
[380461733,1755783039288,-2595.37,0.00021807,3]
[380461734,1755783039298,-1297.69,0.00021807,3]
[380461735,1755783039307,-648.84,0.00021807,3]
[380461736,1755783039316,-324.42,0.00021807,3]
[380461737,1755783039325,-162.21,0.00021807,3]
[380461738,1755783039334,-486.66,0.00021807,3]
[380461739,1755783039343,-3140.29,0.00021814,2]
[380461740,1755783039356,-500.0,0.00021816,2]
[380461741,1755783039366,-500.0,0.00021816,2]
[380461742,1755783039375,-624.34645437,0.00021816,2]
[380461743,1755783039383,-500.0,0.00021816,2]
[380461744,1755783039392,-500.0,0.00021816,2]
[380461745,1755783039401,-500.0,0.00021816,2]
[380461746,1755783039411,-590.91423818,0.00021816,2]
[380461747,1755783039420,-500.0,0.00021816,2]
[380461748,1755783039429,-293601.06812935,0.00021817,2]
[380461749,1755783039438,-24053.24202945,0.00021817,3]
[380461750,1755783039446,-528.88070896,0.00021817,3]
[380461751,1755783039455,-637.0,0.00021828,2]
[380461752,1755783039464,-2154.0,0.00021828,2]
[380461753,1755783039472,-408.0,0.00021828,2]
[380461754,1755783039481,-168.0,0.00021835,2]
[380461755,1755783039490,-1500.0,0.00021844,2]
[380461756,1755783039500,-174.55238056,0.00021879,2]
[380461757,1755783039509,-158.0,0.000219,3]
[380461758,1755783039518,-158.0,0.000219,4]
[380461759,1755783039527,-162.00000001,0.000219,5]
[380461760,1755783039536,-1000.0,0.00021916,2]
[380461761,1755783039545,-1000.0,0.00021916,2]
[380461762,1755783039554,-500.0,0.00021916,2]
[380461763,1755783039563,-480.0,0.00021917,3]
[380461764,1755783039572,-300.0,0.00021917,3]
[380461765,1755783039580,-480.0,0.00021917,3]
[380461766,1755783039589,-480.0,0.00021917,3]
[380461767,1755783039599,-480.0,0.00021917,3]
[380461768,1755783039608,-480.0,0.00021917,3]
[380461769,1755783039617,-801.18,0.00021917,3]
[380461770,1755783039626,-460.51565308,0.00021917,3]
[380461771,1755783039635,-480.0,0.00021917,3]
[380461772,1755783039644,-807.88,0.00021917,3]
[380461773,1755783039652,-480.0,0.00021917,3]
[380461774,1755783039661,-481.27,0.00021917,3]
[380461775,1755783039670,-747.54,0.00021917,3]
[380461776,1755783039679,-1071.98,0.00021917,3]
[380461777,1755783039688,-480.0,0.00021917,3]
[380461778,1755783039697,-997.21,0.00021917,3]
[380461779,1755783039706,-480.0,0.00021917,3]
[380461780,1755783039715,-461.70485593,0.00021917,3]
[380461781,1755783039723,-480.0,0.00021917,3]
[380461782,1755783039732,-480.0,0.00021917,3]
[380461783,1755783039741,-460.0,0.00021917,3]
[380461784,1755783039750,-480.0,0.00021917,3]
[380461785,1755783039759,-415.63145198,0.00021917,3]
[380461786,1755783039768,-480.0,0.00021917,3]
[380461787,1755783039776,-480.0,0.00021917,3]
[380461788,1755783039785,-480.0,0.00021917,3]
[380461789,1755783039794,-480.0,0.00021917,3]
[380461790,1755783039803,-480.0,0.00021917,3]
[380461791,1755783039812,-480.0,0.00021917,3]
[380461792,1755783039821,-480.0,0.00021917,3]
[380461793,1755783039830,-480.0,0.00021917,3]
[380461794,1755783039839,-480.0,0.00021917,3]
[380461795,1755783039849,-480.0,0.00021917,3]
[380461796,1755783039858,-480.0,0.00021917,3]
[380461797,1755783039867,-480.0,0.00021917,3]
[380461798,1755783039876,-480.0,0.00021917,3]
[380461799,1755783039886,-480.0,0.00021917,3]
[380461801,1755783039895,-480.0,0.00021917,3]
[380461803,1755783039905,-480.0,0.00021917,3]
[380461805,1755783039915,-480.0,0.00021917,3]
[380461807,1755783039924,-480.0,0.00021917,3]
[380461809,1755783039933,-708.82,0.00021917,3]
[380461811,1755783039941,-480.0,0.00021917,3]
[380461812,1755783039950,-822.03,0.00021917,3]
[380461813,1755783039959,-480.0,0.00021917,3]
[380461814,1755783039968,-519.66,0.00021917,3]
[380461815,1755783039977,-480.0,0.00021917,3]
[380461816,1755783039986,-480.0,0.00021917,3]
[380461817,1755783039995,-445.96175428,0.00021917,3]
[380461818,1755783040004,-480.0,0.00021917,3]
[380461819,1755783040014,-480.0,0.00021917,3]
[380461820,1755783040023,-661.17,0.00021917,3]
[380461821,1755783040033,-460.93270957,0.00021917,3]
[380461822,1755783040042,-480.0,0.00021917,3]
[380461823,1755783040051,-162.89920866,0.00021917,3]
[380461824,1755783040061,-480.0,0.00021917,3]
[380461826,1755783040070,-401.61821114,0.00021917,3]
[380461828,1755783040081,-305.44407182,0.00021917,3]
[380461831,1755783040093,-480.0,0.00021917,3]
[380461832,1755783040107,-461.38701534,0.00021917,3]
[380461835,1755783040119,-480.0,0.00021917,3]
[380461836,1755783040128,-480.0,0.00021917,3]
[380461838,1755783040137,-859.17,0.00021917,3]
[380461840,1755783040147,-480.0,0.00021917,3]
[380461842,1755783040156,-480.0,0.00021917,3]
[380461844,1755783040165,-597.92,0.00021917,3]
[380461846,1755783040174,-442.81588569,0.00021917,3]
[380461848,1755783040183,-1561.73,0.00021917,3]
[380461850,1755783040192,-480.0,0.00021917,3]
[380461852,1755783040201,-637.12,0.00021917,3]
[380461854,1755783040210,-165.40487279,0.00021917,3]
[380461856,1755783040220,-480.0,0.00021917,3]
[380461858,1755783040230,-480.0,0.00021917,3]
[380461877,1755783040409,-480.0,0.00021917,3]
[380461880,1755783040419,-500.0,0.00021917,3]
[380461882,1755783040429,-480.0,0.00021917,3]
[380461883,1755783040444,-480.0,0.00021917,3]
[380461885,1755783040455,-480.0,0.00021917,3]
[380461888,1755783040467,-751.72,0.00021917,3]
[380461890,1755783040476,-480.0,0.00021917,3]
[380461892,1755783040484,-480.0,0.00021917,3]
[380461893,1755783040493,-480.0,0.00021917,3]
[380461895,1755783040502,-480.0,0.00021917,3]
[380461897,1755783040511,-696.17,0.00021917,3]
[380461899,1755783040521,-574.3,0.00021917,3]
[380461901,1755783040530,-2202.75,0.00021917,3]
[380461903,1755783040540,-480.0,0.00021917,3]
[380461905,1755783040549,-480.52137476,0.00021917,3]
[380461907,1755783040559,-480.0,0.00021917,3]
[380461909,1755783040568,-793.53,0.00021917,3]
[380461911,1755783040577,-460.0,0.00021917,3]
[380461913,1755783040587,-480.0,0.00021917,3]
[380461915,1755783040596,-571.88,0.00021917,3]
[380461917,1755783040610,-1882.96,0.00021917,3]
[380461919,1755783040619,-480.0,0.00021917,3]
[380461921,1755783040628,-480.0,0.00021917,3]
[380461923,1755783040638,-480.0,0.00021917,3]
[380461925,1755783040648,-480.0,0.00021917,3]
[380461927,1755783040658,-480.0,0.00021917,3]
[380461929,1755783040667,-480.0,0.00021917,3]
[380461931,1755783040677,-480.0,0.00021917,3]
[380461933,1755783040686,-466.16039515,0.00021917,3]
[380461935,1755783040696,-480.0,0.00021917,3]
[380461937,1755783040705,-480.0,0.00021917,3]
[380461939,1755783040715,-480.0,0.00021917,3]
[380461941,1755783040724,-828.1,0.00021917,3]
[380461943,1755783040733,-636.21,0.00021917,3]
[380461945,1755783040743,-480.0,0.00021917,3]
[380461947,1755783040752,-480.0,0.00021917,3]
[380461949,1755783040762,-480.0,0.00021917,3]
[380461951,1755783040775,-728.45,0.00021917,3]
[380461953,1755783040796,-480.0,0.00021917,3]
[380461955,1755783040805,-480.0,0.00021917,3]
[380461957,1755783040815,-569.23,0.00021917,3]
[380461959,1755783040824,-480.0,0.00021917,3]
[380461961,1755783040833,-507.03424574,0.00021917,3]
[380461963,1755783040843,-480.0,0.00021917,3]
[380461965,1755783040852,-480.0,0.00021917,3]
[380461966,1755783040862,-480.0,0.00021917,3]
[380461968,1755783040871,-480.0,0.00021917,3]
[380461970,1755783040881,-460.0,0.00021917,3]
[380461972,1755783040890,-480.0,0.00021917,3]
[380461974,1755783040899,-480.0,0.00021917,3]
[380461976,1755783040908,-480.0,0.00021917,3]
[380461978,1755783040918,-480.0,0.00021917,3]
[380461980,1755783040927,-1103.65,0.00021917,3]
[380461982,1755783040936,-871.67,0.00021917,3]
[380461984,1755783040946,-450.05274209,0.00021917,3]
[380461986,1755783040955,-480.0,0.00021917,3]
[380461988,1755783040964,-480.0,0.00021917,3]
[380461990,1755783040973,-565.34,0.00021917,3]
[380461992,1755783040983,-480.0,0.00021917,3]
[380461994,1755783040992,-615.26,0.00021917,3]
[380461996,1755783041001,-460.63889554,0.00021917,3]
[380461998,1755783041010,-480.0,0.00021917,3]
[380462000,1755783041020,-480.0,0.00021917,3]
[380462002,1755783041029,-480.0,0.00021917,3]
[380462004,1755783041038,-601.67,0.00021917,3]
[380462006,1755783041047,-480.0,0.00021917,3]
[380462008,1755783041056,-562.13,0.00021917,3]
[380462010,1755783041065,-519.56,0.00021917,3]
[380462012,1755783041074,-480.0,0.00021917,3]
[380462014,1755783041083,-480.0,0.00021917,3]
[380462016,1755783041092,-480.0,0.00021917,3]
[380462018,1755783041105,-460.0,0.00021917,3]
[380462020,1755783041113,-2242.76,0.00021917,3]
[380462022,1755783041123,-765.34,0.00021917,3]
[380462024,1755783041132,-480.0,0.00021917,3]
[380462025,1755783041141,-1243.27,0.00021917,3]
[380462027,1755783041151,-441.4380161,0.00021917,3]
[380462028,1755783041160,-480.0,0.00021917,3]
[380462029,1755783041170,-480.0,0.00021917,3]
[380462030,1755783041179,-480.0,0.00021917,3]
[380462031,1755783041188,-480.0,0.00021917,3]
[380462032,1755783041197,-480.0,0.00021917,3]
[380462033,1755783041207,-480.0,0.00021917,3]
[380462034,1755783041216,-421.07452121,0.00021917,3]
[380462035,1755783041225,-943.12,0.00021917,3]
[380462036,1755783041234,-480.0,0.00021917,3]
[380462037,1755783041243,-398.87390918,0.00021917,3]
[380462038,1755783041254,-480.0,0.00021917,3]
[380462039,1755783041267,-480.0,0.00021917,3]
[380462040,1755783041277,-151.0,0.00021917,2]
[380462042,1755783041286,-1003.55437792,0.00021917,3]
[380462044,1755783041295,-826.56,0.00021917,3]
[380462046,1755783041306,-480.0,0.00021917,3]
[380462048,1755783041315,-480.0,0.00021917,3]
[380462050,1755783041325,-480.0,0.00021917,3]
[380462052,1755783041335,-480.0,0.00021917,3]
[380462054,1755783041344,-480.0,0.00021917,3]
[380462056,1755783041358,-480.0,0.00021917,3]
[380462058,1755783041367,-480.0,0.00021917,3]
[380462060,1755783041376,-2454.88,0.00021917,3]
[380462062,1755783041386,-480.0,0.00021917,3]
[380462064,1755783041395,-1852.65,0.00021917,3]
[380462066,1755783041405,-460.58336235,0.00021917,3]
[380462067,1755783041414,-480.0,0.00021917,3]
[380462069,1755783041424,-446.33812446,0.00021917,3]
[380462072,1755783041434,-480.0,0.00021917,3]
[380462074,1755783041443,-480.0,0.00021917,3]
[380462075,1755783041453,-480.0,0.00021917,3]
[380462077,1755783041463,-480.0,0.00021917,3]
[380462079,1755783041472,-480.0,0.00021917,3]
[380462081,1755783041481,-480.0,0.00021917,3]
[380462084,1755783041491,-480.0,0.00021917,3]
[380462086,1755783041500,-1071.02,0.00021917,3]
[380462088,1755783041509,-480.0,0.00021917,3]
[380462090,1755783041519,-655.53,0.00021917,3]
[380462091,1755783041527,-480.0,0.00021917,3]
[380462093,1755783041537,-480.0,0.00021917,3]
[380462095,1755783041546,-647.47,0.00021917,3]
[380462097,1755783041556,-480.0,0.00021917,3]
[380462099,1755783041565,-1070.34,0.00021917,3]
[380462101,1755783041574,-480.0,0.00021917,3]
[380462103,1755783041583,-657.1,0.00021917,3]
[380462105,1755783041593,-1239.93,0.00021917,3]
[380462107,1755783041604,-480.0,0.00021917,3]
[380462109,1755783041613,-461.10136554,0.00021917,3]
[380462111,1755783041622,-461.60041753,0.00021917,3]
[380462113,1755783041631,-672.41,0.00021917,3]
[380462115,1755783041640,-287.075371,0.00021917,2]
[380462117,1755783041650,-535.87,0.00021917,3]
[380462119,1755783041659,-461.27402997,0.00021917,3]
[380462121,1755783041668,-462.16780187,0.00021917,3]
[380462123,1755783041677,-995.98,0.00021917,3]
[380462125,1755783041687,-480.0,0.00021917,3]
[380462127,1755783041696,-480.0,0.00021917,3]
[380462129,1755783041705,-789.12,0.00021917,3]
[380462131,1755783041714,-460.72323671,0.00021917,3]
[380462133,1755783041723,-480.0,0.00021917,3]
[380462134,1755783041732,-480.0,0.00021917,3]
[380462136,1755783041741,-480.0,0.00021917,3]
[380462138,1755783041750,-480.0,0.00021917,3]
[380462140,1755783041760,-306.11679316,0.00021917,3]
[380462143,1755783041770,-480.0,0.00021917,3]
[380462145,1755783041780,-905.75,0.00021917,3]
[380462146,1755783041789,-480.0,0.00021917,3]
[380462148,1755783041799,-480.0,0.00021917,3]
[380462150,1755783041807,-480.0,0.00021917,3]
[380462152,1755783041816,-480.0,0.00021917,3]
[380462154,1755783041826,-480.0,0.00021917,3]
[380462156,1755783041835,-480.0,0.00021917,3]
[380462158,1755783041844,-578.17102332,0.00021917,3]
[380462160,1755783041857,-480.0,0.00021917,3]
[380462162,1755783041867,-500.0,0.00021917,3]
[380462164,1755783041876,-500.0,0.00021917,3]
[380462166,1755783041886,-500.0,0.00021917,3]